[Event "BCS-Floripa Super Blitz 2025"]
[Site "Florianopolis"]
[Date "2025.01.22"]
[Round "5.6"]
[White "Almeida Junior, Alvaro Alves de"]
[Black "Monteiro, Samuel Ramazzotte"]
[Result "1/2-1/2"]
[Annotator "TA"]
[ECO "B45"]
[WhiteElo "2138"]
[BlackElo "1866"]
[PlyCount "49"]
[EventDate "2025.01.18"]
[EventType "swiss"]
[EventCountry "BRA"]
[SourceTitle "playchess.com"]
[Source "ChessBase"]
[SourceQuality "1"]
[TimeControl "180+2"]

{[%evp 12,49,0,4,0,-37,-28,-35,-33,-38,-29,-39,0,-8,0,-18,0,-8,0,-47,-66,-94,-81,-96,-92,-105,-100,-312,-295,-313,-226,-236,-231,-335,-333,-306,0,-300,0,-315]} 1. e4 {[%emt 0:00:01]} c5 {[%emt 0:00:00]} 2. Nf3 {[%emt 0:00:02]} e6 {[%emt 0:00:01]} 3. d4 {[%emt 0:00:01]} cxd4 {[%emt 0:00:02]} 4. Nxd4 {[%emt 0:00:01]} Nc6 {[%emt 0:00:01]} 5. Nc3 {[%emt 0:00:08]} Nf6 {[%emt 0:00:02]} 6. Nb3 {[%emt 0:00:03]} Bb4 {[%emt 0:03:08]} 7. Bd3 {[%emt 0:00:03]} d5 {[%emt 0:00:00]} 8. exd5 {[%emt 0:00:01]} Nxd5 {[%emt 0:00:00]} 9. Bd2 {[%emt 0:00:01]} Nxc3 {[%emt 0:00:00]} 10. bxc3 {[%emt 0:00:01]} Bd6 {[%emt 0:00:00]} 11. O-O {[%emt 0:00:07]} Qf6 {[%emt 0:00:00]} 12. Re1 {[%emt 0:00:15][%cal Ob3d4]} O-O {[%emt 0:00:00]} 13. Qh5 {[%emt 0:00:03][%csl Gd3][%cal Rh5h7]} h6 {[%emt 0:00:00]} 14. Qe2 {[%emt 0:00:06]} Ne5 {[%emt 0:00:00]} 15. Rad1 {[%emt 0:00:05]} (15. Be4 $1 $11 {deserves consideration.}) 15... Nxd3 $1 $40 {[%emt 0:00:00][%mdl 128] White needs to defend precisely.} 16. cxd3 {[%emt 0:00:02]} b6 {[%emt 0:00:00]} 17. Qe4 {[%emt 0:00:52]} Rb8 {[%emt 0:00:00]} 18. Qa4 {[%emt 0:00:06]} Bb7 {[%emt 0:00:00]} 19. Qd4 $2 {[%emt 0:00:54] [#]} (19. Qg4 $17) 19... Qg6 $1 $19 {[%emt 0:00:00][%csl Gb7][%cal Rg6g2]} 20. g3 {[%emt 0:00:07]} Rfd8 {[%emt 0:00:00][%cal Od6g3]} 21. Qe3 {[%emt 0:00:12]} Qh5 {[%emt 0:00:00] ...Qh3 would now be deadly.} 22. f4 {[%emt 0:00:14]} (22. Rb1 {was called for.}) 22... Qd5 {[%emt 0:00:00]} 23. Qe4 {[%emt 0:00:08]} Qh5 {[%emt 0:00:00]} 24. Qe3 $1 {[%emt 0:00:01]} Qd5 {[%emt 0:00:00]} 25. Qe4 {[%emt 0:00:00]} 1/2-1/2

[Event "BCS-Floripa Super Blitz 2025"]
[Site "Florianopolis"]
[Date "2025.01.22"]
[Round "5.6"]
[White "McDonald, Ian"]
[Black "Di Berardino, Diego Rafael"]
[Result "0-1"]
[Annotator "TA"]
[ECO "C01"]
[WhiteElo "1966"]
[BlackElo "2466"]
[PlyCount "92"]
[EventDate "2025.01.18"]
[EventType "swiss"]
[EventCountry "BRA"]
[SourceTitle "playchess.com"]
[Source "ChessBase"]
[SourceQuality "1"]
[TimeControl "180+2"]

{[%evp 14,92,29,14,22,16,35,16,33,16,38,14,7,-7,4,0,0,0,0,0,10,0,6,0,0,-25,-25,-26,-19,-29,-28,-28,0,-22,-15,-18,-21,-24,-10,-26,-21,-34,-37,-27,-26,-28,-19,-20,-14,-149,-127,-201,-193,-182,-185,-189,-187,-189,-185,-504,-520,-470,-426,-863,-842,-866,-855,-846,-818,-875,-852,-910,-880,-882,-851,-985,-904,-998,-947,-2735,-2427]} 1. d4 {[%emt 0:00:00]} e6 {[%emt 0:00:01]} 2. e4 {[%emt 0:00:03]} d5 {[%emt 0:00:01]} 3. exd5 {[%emt 0:00:01]} exd5 {[%emt 0:00:02]} 4. Nf3 {[%emt 0:00:00]} Bd6 {[%emt 0:00:01]} 5. Bd3 {[%emt 0:00:01]} Nc6 {[%emt 0:00:02]} 6. c3 {[%emt 0:00:18]} Nge7 {[%emt 0:00:03]} 7. O-O {[%emt 0:00:06]} Bg4 {[%emt 0:00:02][%cal Bc8g4,Bg4h5,Bh5g6][%mdl 32]} 8. h3 {[%emt 0:00:01]} Bh5 {[%emt 0:00:20]} 9. Re1 {[%emt 0:00:00]} Qd7 {[%emt 0:00:02]} 10. a4 {[%emt 0:00:01]} Bg6 {[%emt 0:00:28]} 11. Na3 {[%emt 0:02:53]} a6 {[%emt 0:00:07]} 12. b4 {[%emt 0:00:00]} O-O {[%emt 0:00:04]} 13. Bg5 {[%emt 0:00:00]} Bxd3 {[%emt 0:00:02]} 14. Qxd3 {[%emt 0:00:00]} Ng6 {[%emt 0:00:01]} 15. Nc2 {[%emt 0:00:00]} h6 {[%emt 0:00:02]} 16. Bd2 {[%emt 0:00:00]} Rfe8 {[%emt 0:00:06]} 17. Rxe8+ {[%emt 0:00:00]} Rxe8 {[%emt 0:00:01]} 18. Re1 {[%emt 0:00:00]} Rxe1+ {[%emt 0:00:02]} 19. Ncxe1 {[%emt 0:00:00]} Na7 {[%emt 0:00:06]} 20. Qc2 {[%emt 0:00:00]} Nc8 {[%emt 0:00:01]} 21. Nd3 {[%emt 0:00:00]} Nb6 {[%emt 0:00:03]} 22. Nb2 {[%emt 0:00:00]} Qe8 {[%emt 0:00:01]} 23. Kf1 {[%emt 0:00:00]} Qc6 {[%emt 0:00:15]} 24. Qb3 {[%emt 0:00:00]} Kf8 {[%emt 0:00:27]} 25. Bc1 {[%emt 0:00:00]} f6 {[%emt 0:00:07]} 26. Bd2 {[%emt 0:00:00]} Bf4 {[%emt 0:00:01]} 27. Qc2 {[%emt 0:00:00]} Bxd2 {[%emt 0:00:10]} 28. Nxd2 {[%emt 0:00:00]} Nf4 {[%emt 0:00:06]} 29. a5 {[%emt 0:00:08]} Nc8 {[%emt 0:00:16] White should prevent ...Nd6.} 30. Qf5 {[%emt 0:00:01][%csl LRc8,LRf4]} Ne6 {[%emt 0:00:09]} 31. Kg1 {[%emt 0:00:09]} (31. Qd3 $11) 31... Ne7 {[%emt 0:00:02]} 32. Qd3 {[%emt 0:00:01]} (32. Qf3 $17) 32... Nf4 $19 {[%emt 0:00:04]} 33. Qf3 {[%emt 0:00:02][%cal Ob2d1] [#]} Qxc3 $1 {[%emt 0:00:04][%mdl 512]} 34. Qxf4 {[%emt 0:00:04]} Qxb2 {[%emt 0:00:00][%mdl 4096] Endgame KQN-KQN. Black is a pawn up.} 35. Nf3 {[%emt 0:00:12]} Qc3 {[%emt 0:00:19][%cal Of8f7]} ({Resist} 35... Qxb4 36. Qxc7 Qb1+ 37. Kh2 $17) 36. Qg4 $2 {[%emt 0:00:01]} (36. Kh2) 36... Qxb4 {[%emt 0:00:05]} 37. Nh4 {[%emt 0:00:06]} Qxa5 {[%emt 0:00:09] Strongly threatening ...Qe1+.} 38. Qd7 {[%emt 0:00:03]} (38. Nf5 $142 g6 39. Nxe7 Kxe7 40. Kh2) 38... Qe1+ {[%emt 0:00:09]} 39. Kh2 {[%emt 0:00:01]} Qxf2 {[%emt 0:00:02]} 40. Nf3 {[%emt 0:00:02]} Qc2 {[%emt 0:00:04]} 41. h4 {[%emt 0:00:04]} Qc6 {[%emt 0:00:03]} 42. Qd8+ {[%emt 0:00:02]} Kf7 {[%emt 0:00:00]} 43. Qb8 {[%emt 0:00:01]} h5 {[%emt 0:00:04]} 44. Kg3 {[%emt 0:00:03]} a5 {[%emt 0:00:01]} 45. Qa8 {[%emt 0:00:01]} b6 {[%emt 0:00:02]} 46. Qxc6 {[%emt 0:00:09]} Nxc6 {[%emt 0:00:02]} 0-1

[Event "BCS-Floripa Super Blitz 2025"]
[Site "Florianopolis"]
[Date "2025.01.22"]
[Round "5.7"]
[White "Souza, Adwilhans Luciano"]
[Black "Jessel, Stephen"]
[Result "1-0"]
[Annotator "TA"]
[ECO "C12"]
[WhiteElo "2329"]
[BlackElo "2317"]
[PlyCount "141"]
[EventDate "2025.01.18"]
[EventType "swiss"]
[EventCountry "BRA"]
[SourceTitle "playchess.com"]
[Source "ChessBase"]
[SourceQuality "1"]
[TimeControl "180+2"]

{[%evp 10,141,50,46,50,36,43,47,43,46,36,9,2,17,12,8,32,43,23,0,76,75,60,38,79,54,63,33,60,30,42,13,4,11,15,0,0,0,8,0,0,0,0,0,3,0,0,0,0,0,11,17,76,77,138,58,71,0,0,0,0,0,0,0,88,0,879,692,1765,1517,1642,1608,2427,8,1430,0,7,7,7,7,7,7,7,7,7,7,7,7,8,8,8,8,8,8,8,8,8,8,8,8,29965,29966,29966,29967,29966,29968,29970,29972,29972,29972,29972,29973,29974,29974,29977,29976,29977,29977,29978,29978,29977,29978,29977,29978,29986,29982,29982,29983,29983,29984,29985,29986,29988,29989]} 1. e4 {[%emt 0:00:03]} e6 {[%emt 0:00:01]} 2. d4 {[%emt 0:00:01]} d5 {[%emt 0:00:02]} 3. Nc3 {[%emt 0:00:01]} Nf6 {[%emt 0:00:01]} 4. Bg5 {[%emt 0:00:02]} h6 {[%emt 0:00:04]} 5. Bxf6 {[%emt 0:00:02]} Qxf6 {[%emt 0:00:01]} 6. exd5 {[%emt 0:00:06]} Bb4 {[%emt 0:00:02]} 7. Bb5+ {[%emt 0:00:22]} Bd7 {[%emt 0:00:05]} 8. Bxd7+ {[%emt 0:00:02]} Nxd7 {[%emt 0:00:01]} 9. dxe6 {[%emt 0:00:04]} Qxe6+ {[%emt 0:00:04]} 10. Qe2 {[%emt 0:00:02]} Bxc3+ {[%emt 0:00:05]} 11. bxc3 {[%emt 0:00:02]} Qxe2+ {[%emt 0:00:03]} 12. Nxe2 {[%emt 0:00:15]} O-O-O {[%emt 0:00:04]} 13. O-O-O {[%emt 0:00:10]} Nb6 {[%emt 0:00:03]} 14. Nf4 {[%emt 0:00:25]} g5 {[%emt 0:00:58]} (14... Rd6 $11) 15. Nd3 $16 {[%emt 0:00:39]} Rd5 {[%emt 0:00:32]} 16. Rhe1 {[%emt 0:00:11]} Rhd8 {[%emt 0:00:25]} 17. Re5 {[%emt 0:00:21]} Na4 {[%emt 0:00:22]} 18. Kd2 {[%emt 0:00:12]} c5 {[%emt 0:00:01]} 19. Re7 {[%emt 0:00:29]} cxd4 {[%emt 0:00:06]} 20. cxd4 {[%emt 0:00:01]} (20. Rxf7 $2 dxc3+ 21. Ke2 Nb2 $19) 20... Rxd4 {[%emt 0:00:06]} 21. Rxf7 {[%emt 0:00:01]} Nc5 {[%emt 0:00:08][%cal Rc5d3]} 22. Kc3 {[%emt 0:00:01]} (22. Kc1 {simplifies} Nxd3+ 23. cxd3 Rxd3 24. Rxd3 Rxd3 25. Rf6) 22... Na4+ {[%emt 0:00:09]} 23. Kd2 {[%emt 0:00:02]} Nb2 {[%emt 0:00:08][%cal Rb2d3]} 24. Rb1 {[%emt 0:00:03]} Nxd3 {[%emt 0:00:01]} 25. cxd3 {[%emt 0:00:02]} Rxd3+ $11 {[%emt 0:00:02][%mdl 4096] Endgame KRR-KRR} 26. Ke2 {[%emt 0:00:01]} R3d7 {[%emt 0:00:04]} 27. Rc1+ {[%emt 0:00:03]} Kb8 {[%emt 0:00:01]} 28. Rxd7 {[%emt 0:00:01]} Rxd7 {[%emt 0:00:01] KR-KR} 29. Ke3 {[%emt 0:00:02]} b5 {[%emt 0:00:01]} 30. Rc6 {[%emt 0:00:01]} a5 {[%emt 0:00:03]} (30... Re7+ $11 31. Kf3 g4+ 32. Kxg4 Re2) 31. Rxh6 $16 {[%emt 0:00:07]} Ka7 {[%emt 0:00:01] Inhibits Rb6.} ({Better is} 31... Re7+ 32. Kd3 Rd7+ 33. Ke3 Re7+) 32. Rg6 {[%emt 0:00:01]} (32. g4 $16) 32... Rd5 $14 {[%emt 0:00:04]} 33. f4 {[%emt 0:00:03]} (33. a3 $16) 33... gxf4+ $11 {[%emt 0:00:01]} 34. Kxf4 {[%emt 0:00:01]} Rd2 {[%emt 0:00:09]} 35. h4 {[%emt 0:00:01][%cal Bh2h4,Bh4h5,Bh5h6,Bh6h7][%mdl 32]} Rxa2 {[%emt 0:00:01] White must now prevent ...b4.} 36. h5 {[%emt 0:00:01]} Ra1 {[%emt 0:00:04] [#]} (36... Ra4+ $11 {keeps the balance.} 37. Kg5 Ra2) 37. Rg3 {[%emt 0:00:05]} ({White should play} 37. Rg7+ $1 $16 Kb6 38. Rg3 Rf1+ 39. Kg5) 37... Rc1 $2 {[%emt 0:00:06][%mdl 8192]} (37... b4 $11) 38. h6 $18 {[%emt 0:00:02]} Rc8 {[%emt 0:00:01]} 39. h7 {[%emt 0:00:02] Threatening mate with Rg8.} Rh8 {[%emt 0:00:01]} 40. Rh3 {[%emt 0:00:01]} Kb6 {[%emt 0:00:01]} 41. Ke4 $2 {[%emt 0:00:02]} ({Only move:} 41. g4 $18 Rf8+ 42. Ke5 Re8+ 43. Kf6) 41... Kc5 $2 {[%emt 0:00:01][%mdl 8192]} (41... a4 $11) 42. Kd3 $2 {[%emt 0:00:01]} (42. g4 $18 {Strongly threatening g5.} b4 43. g5) 42... Kd5 {[%emt 0:00:02]} 43. Rh5+ {[%emt 0:00:02]} Ke6 {[%emt 0:00:02]} 44. Rxb5 {[%emt 0:00:07]} Rxh7 {[%emt 0:00:02]} 45. Rxa5 {[%emt 0:00:01]} Rh2 {[%emt 0:00:03]} 46. Ra2 {[%emt 0:00:03]} Kf6 {[%emt 0:00:01]} 47. Ke4 {[%emt 0:00:01]} Kg5 {[%emt 0:00:01]} 48. Kf3 {[%emt 0:00:01]} Rh8 {[%emt 0:00:03]} 49. Ra5+ {[%emt 0:00:01]} Kg6 {[%emt 0:00:01]} 50. Kf4 {[%emt 0:00:03]} Rf8+ {[%emt 0:00:01]} 51. Kg4 {[%emt 0:00:01]} Rf1 {[%emt 0:00:01]} 52. Ra6+ {[%emt 0:00:00]} Kf7 {[%emt 0:00:03]} 53. Kg5 {[%emt 0:00:14]} Rb1 {[%emt 0:00:03]} 54. g4 {[%emt 0:00:00][%cal Bg2g4,Bg4g5,Bg5g6,Bg6g7][%mdl 32]} Rh1 $2 {[%emt 0:00:05][%mdl 8192]} (54... Kg7 $11) 55. Ra7+ {[%emt 0:00:00]} Kg8 {[%emt 0:00:04]} 56. Kg6 {[%emt 0:00:00][%cal Ra7a8]} Kf8 {[%emt 0:00:01]} 57. g5 {[%emt 0:00:00]} Rb1 {[%emt 0:00:01]} 58. Ra8+ {[%emt 0:00:00]} Ke7 {[%emt 0:00:02]} 59. Kh7 {[%emt 0:00:01]} Rh1+ {[%emt 0:00:01]} 60. Kg7 {[%emt 0:00:01]} Ke6 {[%emt 0:00:02]} 61. g6 {[%emt 0:00:03]} Ke7 {[%emt 0:00:03]} 62. Ra2 {[%emt 0:00:02]} Ke8 {[%emt 0:00:02]} 63. Re2+ {[%emt 0:00:01]} Kd7 {[%emt 0:00:00]} 64. Kf7 {[%emt 0:00:02]} Rf1+ {[%emt 0:00:03]} 65. Kg8 {[%emt 0:00:01]} Rh1 {[%emt 0:00:03]} 66. g7 {[%emt 0:00:01]} Kd8 {[%emt 0:00:03]} 67. Re4 {[%emt 0:00:04]} Kd7 {[%emt 0:00:01]} 68. Kf7 {[%emt 0:00:01]} Rf1+ {[%emt 0:00:02]} 69. Kg6 {[%emt 0:00:01]} Rg1+ {[%emt 0:00:02]} 70. Kf6 {[%emt 0:00:02]} Kd8 {[%emt 0:00:01]} 71. Re5 {[%emt 0:00:05]} 1-0

[Event "BCS-Floripa Super Blitz 2025"]
[Site "Florianopolis"]
[Date "2025.01.22"]
[Round "5.7"]
[White "Lage, Pedro Ferreira"]
[Black "Castillo, Samir"]
[Result "1-0"]
[Annotator "TA"]
[ECO "A45"]
[WhiteElo "2160"]
[BlackElo "1767"]
[PlyCount "59"]
[EventDate "2025.01.18"]
[EventType "swiss"]
[EventCountry "BRA"]
[SourceTitle "playchess.com"]
[Source "ChessBase"]
[SourceQuality "1"]
[TimeControl "180+2"]

{[%evp 9,59,-25,-17,-27,-23,-15,-22,-35,-22,-39,-21,-35,-19,-22,-16,-13,116,104,178,118,155,95,155,159,185,176,178,173,194,190,225,197,283,266,323,231,314,277,417,417,506,495,493,507,500,512,524,490,480,469,848,835]} 1. d4 {[%emt 0:00:05]} Nf6 {[%emt 0:00:01]} 2. Bg5 {[%emt 0:00:01]} c5 {[%emt 0:00:01]} 3. d5 {[%emt 0:00:02]} d6 {[%emt 0:00:10]} 4. c4 {[%emt 0:00:07]} g6 {[%emt 0:00:02]} 5. Bxf6 {[%emt 0:00:02]} exf6 {[%emt 0:00:02]} 6. Nc3 {[%emt 0:00:03]} Bg7 {[%emt 0:00:03]} 7. e3 {[%emt 0:00:06]} O-O {[%emt 0:00:06]} 8. g3 {[%emt 0:00:02]} Bd7 {[%emt 0:00:07]} 9. Bg2 {[%emt 0:00:07]} f5 {[%emt 0:00:02][%cal Ob7b5]} 10. Nge2 {[%emt 0:00:04]} a6 {[%emt 0:00:04]} 11. a4 {[%emt 0:00:06][%cal Ba2a4,Ba4b5][%mdl 32]} Qe8 {[%emt 0:00:14]} 12. O-O {[%emt 0:00:08]} b5 {[%emt 0:00:01]} (12... Bc8 $11 {remains equal.}) 13. axb5 $16 {[%emt 0:00:03]} Qe7 {[%emt 0:00:17]} (13... Bc8 $16 14. Ra2 Qe7) 14. Qb3 {[%emt 0:00:13]} (14. Ra5 $18) 14... Bc8 {[%emt 0:00:15]} 15. Ra2 {[%emt 0:00:15]} (15. Ra5 $142) 15... Bb7 {[%emt 0:00:05]} (15... Ra7 $142) 16. Rfa1 {[%emt 0:00:01]} h5 {[%emt 0:00:18]} 17. Ra5 {[%emt 0:00:28]} h4 {[%emt 0:00:06]} 18. R1a3 {[%emt 0:00:13]} hxg3 {[%emt 0:00:03]} 19. hxg3 {[%emt 0:00:01]} g5 {[%emt 0:00:16]} 20. Qa2 {[%emt 0:00:03]} f4 {[%emt 0:00:13]} (20... Rd8 $142 21. Qb1 (21. bxa6 Bxc3 22. Nxc3 Rxa6 $18) 21... Bc8) 21. exf4 $18 {[%emt 0:00:04]} Bxc3 {[%emt 0:00:03]} 22. bxc3 {[%emt 0:00:14]} Kg7 {[%emt 0:00:12]} 23. bxa6 {[%emt 0:00:06]} Nxa6 {[%emt 0:00:06]} (23... Bc8 {keeps fighting.} 24. fxg5 Bg4) 24. fxg5 {[%emt 0:00:18]} Rh8 {[%emt 0:00:12]} 25. Qd2 {[%emt 0:00:21]} ({Worse is} 25. Rxa6 Bxa6 26. Rxa6 Rxa6 27. Qxa6 Qxe2 $11) 25... Rae8 {[%emt 0:00:11]} 26. Nf4 {[%emt 0:00:09]} Qe1+ {[%emt 0:00:12]} 27. Qxe1 {[%emt 0:00:01]} Rxe1+ {[%emt 0:00:01]} 28. Bf1 {[%emt 0:00:02]} Nc7 {[%emt 0:00:08]} 29. Ra7 {[%emt 0:00:06]} Rb8 {[%emt 0:00:06]} (29... Ra8 $142 30. Kg2 (30. Rxb7 Rxa3 31. Rxc7 Raa1 $18) 30... Rb8) 30. Rb3 {[%emt 0:00:03]} 1-0

[Event "BCS-Floripa Super Blitz 2025"]
[Site "Florianopolis"]
[Date "2025.01.22"]
[Round "5.8"]
[White "Shoker, Samy"]
[Black "Tomiello, Mateus Costamilan"]
[Result "1-0"]
[Annotator "TA"]
[ECO "A08"]
[WhiteElo "2446"]
[BlackElo "2141"]
[PlyCount "67"]
[EventDate "2025.01.18"]
[EventType "swiss"]
[EventCountry "BRA"]
[SourceTitle "playchess.com"]
[Source "ChessBase"]
[SourceQuality "1"]
[TimeControl "180+2"]

{[%evp 11,67,-2,0,0,-13,-31,-8,-24,-14,-29,0,0,0,0,18,10,47,0,77,71,72,74,65,69,62,33,41,-33,139,110,260,268,270,280,282,277,263,270,273,135,128,112,144,143,152,146,153,150,139,138,300,293,1024,1024,1026,1023,978,975]} 1. Nf3 {[%emt 0:00:01]} Nf6 {[%emt 0:00:02]} 2. g3 {[%emt 0:00:01]} g6 {[%emt 0:00:02]} 3. Bg2 {[%emt 0:00:00]} Bg7 {[%emt 0:00:01]} 4. O-O {[%emt 0:00:02]} O-O {[%emt 0:00:01]} 5. d3 {[%emt 0:00:01]} d5 {[%emt 0:00:03]} 6. Nbd2 {[%emt 0:00:01]} c5 {[%emt 0:00:05]} 7. a3 {[%emt 0:00:02]} Nc6 {[%emt 0:00:03]} 8. Rb1 {[%emt 0:00:01]} d4 {[%emt 0:00:10]} 9. e4 {[%emt 0:00:07]} e5 {[%emt 0:00:15]} 10. b4 {[%emt 0:00:03]} cxb4 {[%emt 0:00:03]} 11. axb4 {[%emt 0:00:01]} b5 {[%emt 0:00:11]} 12. Nb3 {[%emt 0:00:01][%cal Ob3a5]} Qd6 {[%emt 0:00:04][%cal Of6d7]} 13. Bd2 {[%emt 0:00:03]} Be6 {[%emt 0:00:11][%cal Oa7a6]} 14. Nc5 {[%emt 0:00:05]} (14. Ng5 $14 {might be stronger.}) 14... Rfc8 {[%emt 0:00:07]} (14... Bc8 $11) 15. Ng5 $16 {[%emt 0:00:13]} Bg4 {[%emt 0:00:12] [#]} 16. f3 $1 {[%emt 0:00:00][%cal Bf2f3,Bf3f4][%mdl 32]} Bd7 {[%emt 0:00:04]} 17. f4 {[%emt 0:00:08]} Bg4 {[%emt 0:00:21]} 18. Qe1 {[%emt 0:00:01]} h6 {[%emt 0:00:02]} 19. h3 {[%emt 0:00:13]} (19. Nf3 $14) 19... Bd7 $2 {[%emt 0:00:30]} (19... hxg5 $15 {keeps the upper hand.} 20. hxg4 Qe7 (20... Nxg4 21. Bh3 $14)) 20. Nf3 {[%emt 0:00:04] Strongly threatening Nxe5.} Be8 {[%emt 0:00:08]} (20... Qe7 $16 {was necessary.}) 21. fxe5 $18 {[%emt 0:00:08]} Nxe5 {[%emt 0:00:02]} 22. Nxe5 {[%emt 0:00:05]} Qxe5 {[%emt 0:00:03]} 23. Bf4 {[%emt 0:00:01]} Qe7 {[%emt 0:00:18]} 24. e5 {[%emt 0:00:01]} Nd7 {[%emt 0:00:02][%cal Od7c5]} 25. Bxa8 {[%emt 0:00:13]} (25. e6 $18 Nxc5 26. exf7+ (26. bxc5 Qxc5 27. Bxa8 Rxa8 $16) (26. Bxa8 Nxe6 27. Bd5 Rxc2 $14) 26... Qxf7 27. Bxh6 (27. bxc5 Bc6 $18) (27. Bxa8 Rxa8 28. Bd6 Qd5 $16)) 25... Nxc5 $16 {[%emt 0:00:04]} 26. Bd5 {[%emt 0:00:13]} Ne6 {[%emt 0:00:04]} 27. Bb3 {[%emt 0:00:15]} Bc6 {[%emt 0:00:01]} 28. Ra1 {[%emt 0:00:05]} Ba8 {[%emt 0:00:03]} 29. Kh2 {[%emt 0:00:12]} Qb7 {[%emt 0:00:04]} 30. Qf2 {[%emt 0:00:10] Prevents Qg2+.} g5 $2 {[%emt 0:00:15]} (30... Re8 $16 31. h4 h5) 31. Bd2 $18 {[%emt 0:00:02]} Bxe5 $2 {[%emt 0:00:05]} (31... Qc7 32. Rae1 Re8) 32. Rae1 {[%emt 0:00:13]} Bg7 {[%emt 0:00:09] [#]} 33. Qxf7+ $3 {[%emt 0:00:14][%mdl 512]} Qxf7 {[%emt 0:00:07]} 34. Rxf7 {[%emt 0:00:04]} (34. Bxe6 Qxe6 35. Rxe6 Bd5 $16) 1-0

[Event "BCS-Floripa Super Blitz 2025"]
[Site "Florianopolis"]
[Date "2025.01.22"]
[Round "5.8"]
[White "Arosteguy, Vitor Augusto Colaco"]
[Black "De Melo, Jailson Jose"]
[Result "0-1"]
[Annotator "NA RC COMBH"]
[ECO "A02"]
[WhiteElo "1613"]
[BlackElo "1866"]
[PlyCount "38"]
[EventDate "2025.01.18"]
[EventType "swiss"]
[EventCountry "BRA"]
[SourceTitle "playchess.com"]
[Source "ChessBase"]
[SourceQuality "1"]
[TimeControl "180+2"]

1. b3 {[%emt 0:00:06]} Nf6 {[%emt 0:00:03]} 2. Bb2 {[%emt 0:00:00]} g6 {[%emt 0:00:01]} 3. e3 {[%emt 0:00:01]} Bg7 {[%emt 0:00:02]} 4. f4 {[%emt 0:00:02]} c5 {[%emt 0:00:04]} 5. Nf3 {[%emt 0:00:02]} O-O {[%emt 0:00:02]} 6. c4 {[%emt 0:00:01]} d5 {[%emt 0:00:03]} 7. Nc3 {[%emt 0:00:09]} d4 {[%emt 0:00:06]} 8. exd4 {[%emt 0:00:14]} cxd4 {[%emt 0:00:01]} 9. Ne2 {[%emt 0:00:15]} Nc6 {[%emt 0:00:43]} 10. Nexd4 {[%emt 0:00:26]} Bg4 {[%emt 0:00:15]} 11. Nxc6 {[%emt 0:00:02]} bxc6 {[%emt 0:00:01]} 12. Be2 {[%emt 0:00:32]} Nh5 {[%emt 0:00:04]} 13. Bxg7 Kxg7 {[%emt 0:00:02]} 14. Ne5 {[%emt 0:00:20]} Bxe2 {[%emt 0:00:06]} 15. Qxe2 {[%emt 0:00:02]} Nxf4 {[%emt 0:00:02]} 16. Nxc6 {[%emt 0:00:19]} Nd3+ {[%emt 0:00:21]} 17. Kf1 {[%emt 0:00:08]} Qd6 {[%emt 0:00:01]} 18. Qe3 {[%emt 0:00:40]} Qf6+ {[%emt 0:00:28]} 19. Kg1 {[%emt 0:00:06]} Qxa1+ {[%emt 0:00:02]} 0-1